[Event "FRA-ch Youth U16 2018"]
[Site "Agen"]
[Date "2018.04.20"]
[Round "7"]
[White "Vlachos, Anatole"]
[Black "Degraeve, Remy"]
[Result "1-0"]
[ECO "A01"]
[WhiteElo "2346"]
[BlackElo "2294"]
[Annotator "NA"]
[PlyCount "75"]
[EventDate "2018.??.??"]
[EventType "swiss"]
[EventCountry "FRA"]
[SourceTitle "playchess.com"]
[Source "ChessBase"]
[SourceQuality "1"]
[TimeControl "5400+30"]

1. b3 {[%emt 0:00:00]} d5 {[%emt 0:00:25]} 2. Bb2 {[%emt 0:00:00]} Bg4 {[%emt 0:00:02]} 3. g3 {[%emt 0:00:28]} Nc6 {[%emt 0:02:53]} 4. h3 {[%emt 0:00:33]} Bh5 {[%emt 0:00:31]} 5. Bg2 {[%emt 0:00:09]} e5 {[%emt 0:00:28]} 6. Nf3 {[%emt 0:00:36]} Bd6 {[%emt 0:01:47]} 7. c4 {[%emt 0:04:17]} d4 {[%emt 0:02:26]} 8. d3 {[%emt 0:01:18]} f5 {[%emt 0:02:30]} 9. Nbd2 {[%emt 0:03:16]} Nf6 {[%emt 0:00:42]} 10. Qc2 {[%emt 0:04:32]} Qe7 {[%emt 0:01:48]} 11. Nh4 {[%emt 0:02:18]} g6 {[%emt 0:00:38]} 12. a3 {[%emt 0:03:41]} a5 {[%emt 0:00:21]} 13. O-O {[%emt 0:02:34]} O-O {[%emt 0:02:08]} (13... Bxe2 14. Rfe1 $18) 14. Rfe1 {[%emt 0:04:56]} e4 $2 {[%emt 0:04:27]} (14... Bc5 $17 {keeps the pressure on.}) 15. dxe4 {[%emt 0:02:14]} f4 {[%emt 0:00:04]} 16. g4 {[%emt 0:03:39]} Nxg4 {[%emt 0:08:43]} 17. hxg4 {[%emt 0:00:11]} Qxh4 $2 {[%emt 0:00:45]} (17... Bxg4 18. Nhf3 Bc5) 18. gxh5 {[%emt 0:01:03]} g5 {[%emt 0:01:53]} 19. Nf3 {[%emt 0:10:43]} Qxh5 {[%emt 0:00:16]} 20. e5 {[%emt 0:00:06]} Bc5 {[%emt 0:02:53]} 21. Qe4 {[%emt 0:05:59]} Rad8 {[%emt 0:00:59]} (21... g4 $142) 22. b4 {[%emt 0:00:09]} axb4 {[%emt 0:00:05]} 23. axb4 {[%emt 0:00:04]} Bxb4 {[%emt 0:00:44]} 24. Nxd4 {[%emt 0:01:36]} Bxe1 {[%emt 0:01:41]} 25. Nxc6 {[%emt 0:01:54]} ({Much less strong is} 25. Rxe1 Nxd4 26. Bxd4 Qg6 $18) 25... Bxf2+ {[%emt 0:02:11]} 26. Kxf2 {[%emt 0:00:22]} bxc6 {[%emt 0:06:05]} 27. e6 {[%emt 0:02:11]} f3 {[%emt 0:00:02]} 28. e7 {[%emt 0:09:51]} fxg2+ {[%emt 0:00:59]} 29. Kxg2 {[%emt 0:00:33]} Qf7 {[%emt 0:01:17]} (29... Rde8 $18) 30. exd8=Q {[%emt 0:02:24]} Qf2+ {[%emt 0:02:27]} 31. Kh1 {[%emt 0:02:05]} Rxd8 {[%emt 0:00:08]} 32. Rg1 {[%emt 0:00:40]} Kf8 {[%emt 0:02:09]} 33. Ba3+ {[%emt 0:03:55]} c5 {[%emt 0:00:59]} 34. e3 {[%emt 0:01:05]} Qf6 {[%emt 0:04:51]} 35. Bxc5+ {[%emt 0:01:37]} Kg8 {[%emt 0:00:20]} 36. Bd4 {[%emt 0:00:53]} Qh6+ {[%emt 0:00:20]} 37. Kg2 {[%emt 0:00:06]} c5 {[%emt 0:07:06]} 38. Rh1 {[%emt 0:00:47]} 1-0

[Event "FRA-ch Youth U16 2018"]
[Site "Agen"]
[Date "2018.04.20"]
[Round "7"]
[White "Travadon, Loic"]
[Black "Robert, Mathias"]
[Result "1-0"]
[ECO "E92"]
[WhiteElo "2344"]
[BlackElo "2171"]
[Annotator "NA"]
[PlyCount "74"]
[EventDate "2018.??.??"]
[EventType "swiss"]
[EventCountry "FRA"]
[SourceTitle "playchess.com"]
[Source "ChessBase"]
[SourceQuality "1"]
[TimeControl "5400+30"]

1. d4 {[%emt 0:00:00]} Nf6 {[%emt 0:00:07]} 2. c4 {[%emt 0:00:00]} g6 {[%emt 0:00:00]} 3. Nc3 {[%emt 0:00:00]} Bg7 {[%emt 0:00:00]} 4. e4 {[%emt 0:00:00]} d6 {[%emt 0:00:02]} 5. Nf3 {[%emt 0:00:00]} O-O {[%emt 0:00:04]} 6. Be2 {[%emt 0:00:00]} e5 {[%emt 0:00:04]} 7. d5 {[%emt 0:00:00]} a5 {[%emt 0:00:15]} 8. Bg5 {[%emt 0:00:00]} h6 {[%emt 0:00:05]} 9. Be3 {[%emt 0:00:01]} Ng4 {[%emt 0:05:43] E92: King's Indian: Classical: 6 Be2 e5: 7 dxe5, 7 Be3 and Petrosian System without 7...Nbd7} 10. Bd2 {[%emt 0:00:04]} f5 {[%emt 0:03:21]} 11. h3 {[%emt 0:00:10]} Nf6 {[%emt 0:00:17]} 12. exf5 {[%emt 0:00:04]} gxf5 {[%emt 0:00:26]} 13. Qc1 {[%emt 0:00:03]} Kh7 {[%emt 0:05:04]} (13... f4 14. g3 e4 15. Nh4 e3 16. fxe3 fxg3 17. Ng6 {½-½ (69) Erdos,V (2628)-Amin,B (2680) Tbilisi 2017}) 14. g4 {[%emt 0:00:12]} Ne4 {[%emt 0:00:27]} 15. Nxe4 {[%emt 0:00:43]} fxe4 {[%emt 0:00:18]} 16. Qc2 {[%emt 0:00:06]} Nd7 {[%emt 0:05:46]} 17. Qxe4+ {[%emt 0:00:12]} Kh8 $146 {[%emt 0:00:32]} 18. Be3 {[%emt 0:05:21]} Qe7 {[%emt 0:22:17]} (18... b6 $16 {was worth a try.} 19. g5 Nc5) 19. O-O-O {[%emt 0:07:11]} b6 {[%emt 0:14:54]} (19... Nc5 $142 20. Bxc5 Rf4) 20. Bd3 {[%emt 0:04:33]} Nf6 {[%emt 0:01:28]} 21. Nh4 {[%emt 0:00:05]} ({Less strong is} 21. Qg6 e4 $14) 21... Qe8 {[%emt 0:10:04]} 22. Qg2 {[%emt 0:01:25]} e4 {[%emt 0:03:05]} 23. Bc2 {[%emt 0:00:05]} Kg8 {[%emt 0:02:49]} 24. Rhg1 {[%emt 0:01:04]} Rf7 {[%emt 0:04:17]} 25. Bd4 {[%emt 0:02:06]} Qe7 {[%emt 0:02:51]} 26. Ng6 {[%emt 0:02:11]} Qe8 {[%emt 0:01:17]} 27. Rde1 {[%emt 0:00:32]} Ba6 {[%emt 0:01:34]} (27... Bd7 $142 28. g5 (28. Bxe4 Nxe4 29. Rxe4 Bxd4 $18) 28... Ng4 29. Bxg7 Rxg7 30. gxh6 Rxg6 31. Bxe4 Rxh6) 28. b3 {[%emt 0:01:58]} a4 {[%emt 0:00:15]} (28... Nh7 $142 29. Rxe4 Qd8) 29. Bxe4 {[%emt 0:01:24]} Nxe4 {[%emt 0:00:42]} 30. Rxe4 $18 {[%emt 0:00:39]} Qd8 {[%emt 0:00:28]} 31. Bxg7 {[%emt 0:01:00]} Qg5+ {[%emt 0:01:06]} 32. f4 {[%emt 0:00:10]} Qxg6 {[%emt 0:00:07]} 33. Bc3 {[%emt 0:00:17]} axb3 {[%emt 0:00:14]} 34. axb3 {[%emt 0:00:12]} b5 {[%emt 0:03:11]} 35. f5 {[%emt 0:01:08]} Qg5+ {[%emt 0:00:05]} 36. Qd2 {[%emt 0:00:03]} Qh4 {[%emt 0:00:15]} 37. Re6 {[%emt 0:00:24]} Qg5 {[%emt 0:00:59]} 1-0

[Event "FRA-ch Youth U16 2018"]
[Site "Agen"]
[Date "2018.04.20"]
[Round "7"]
[White "Harutyunyan, Ruben"]
[Black "Joly, Julien"]
[Result "1-0"]
[ECO "B32"]
[WhiteElo "2305"]
[BlackElo "1844"]
[Annotator "NA"]
[PlyCount "57"]
[EventDate "2018.??.??"]
[EventType "swiss"]
[EventCountry "FRA"]
[SourceTitle "playchess.com"]
[Source "ChessBase"]
[SourceQuality "1"]
[TimeControl "5400+30"]

1. e4 {[%emt 0:00:00]} c5 {[%emt 0:00:25]} 2. Nf3 {[%emt 0:00:00]} Nc6 {[%emt 0:00:09]} 3. d4 {[%emt 0:00:00]} cxd4 {[%emt 0:00:06]} 4. Nxd4 {[%emt 0:00:00]} Qb6 {[%emt 0:00:27]} 5. Nb3 {[%emt 0:00:00]} Nf6 {[%emt 0:00:14]} 6. Nc3 {[%emt 0:00:00]} e6 {[%emt 0:00:09]} 7. Bd3 {[%emt 0:00:00] LiveBook: 1150 Games} a6 {[%emt 0:00:09]} 8. Be3 {[%emt 0:00:00]} Qc7 {[%emt 0:00:06]} 9. f4 {[%emt 0:00:00]} d6 {[%emt 0:00:35]} 10. Qf3 {[%emt 0:00:04]} Be7 {[%emt 0:04:45]} 11. O-O {[%emt 0:01:09]} O-O {[%emt 0:08:44]} 12. g4 {[%emt 0:00:05]} Nb4 {[%emt 0:28:31] B33: Sicilian: Pelikan and Sveshnikov Variations} (12... b5 13. g5 Nd7 14. Qh5 g6 15. Qh6 Re8 16. Rf3 Bf8 17. Qh4 Qd8 18. Raf1 Bb7 19. Rh3 h6 20. Nd4 Nxd4 21. Bxd4 e5 22. Be3 exf4 23. Bxf4 Ne5 24. gxh6 Qxh4 25. Rxh4 {½-½ (55) Ponomariov,R (2743)-Akopian,V (2678) Moscow 2002}) 13. g5 {[%emt 0:02:04]} Nd7 {[%emt 0:02:08] [#]} 14. Qh3 $146 {[%emt 0:02:37]} ({Predecessor:} 14. Qh5 b5 15. Rf3 Re8 16. Rc1 g6 17. Qh4 Nxd3 18. cxd3 Qd8 19. Ne2 Bf8 20. Ned4 {½-½ (37) Plomp,M (2557)-Gmuer,A (2490) Switzerland 2003}) 14... Nxd3 {[%emt 0:04:19]} 15. cxd3 {[%emt 0:00:07]} Re8 {[%emt 0:12:10]} 16. f5 {[%emt 0:10:10]} Bf8 $2 {[%emt 0:01:19] [#]} ({Black should play} 16... exf5 $14 17. exf5 (17. Qxf5 Ne5 $15) (17. Nd5 Qd8 $11) 17... Ne5) 17. fxe6 $1 {[%emt 0:11:10]} fxe6 {[%emt 0:09:16]} 18. d4 $16 {[%emt 0:09:40]} b5 {[%emt 0:07:16]} 19. g6 {[%emt 0:11:53]} hxg6 {[%emt 0:03:06]} 20. Qg4 {[%emt 0:00:48]} b4 {[%emt 0:05:18]} 21. Qxg6 {[%emt 0:01:15]} Re7 {[%emt 0:01:37]} 22. Bg5 {[%emt 0:06:45]} Nb6 {[%emt 0:03:06]} 23. Rf3 {[%emt 0:02:29]} e5 {[%emt 0:05:18]} 24. Raf1 {[%emt 0:06:26]} Be6 {[%emt 0:02:40]} 25. Bxe7 {[%emt 0:00:33]} Qxe7 {[%emt 0:00:09]} 26. d5 {[%emt 0:00:47]} Nxd5 {[%emt 0:00:54]} 27. Nxd5 {[%emt 0:00:29]} Bxd5 {[%emt 0:00:08]} 28. exd5 {[%emt 0:00:08]} Qh4 {[%emt 0:00:29]} 29. Qe6+ {[%emt 0:00:05]} 1-0

[Event "FRA-ch Youth U16 2018"]
[Site "Agen"]
[Date "2018.04.20"]
[Round "7"]
[White "Aubert, Estee"]
[Black "Diez, Ambre"]
[Result "1-0"]
[ECO "A45"]
[WhiteElo "1892"]
[BlackElo "1701"]
[Annotator "NA"]
[PlyCount "51"]
[EventDate "2018.??.??"]
[EventType "swiss"]
[EventCountry "FRA"]
[SourceTitle "playchess.com"]
[Source "ChessBase"]
[SourceQuality "1"]
[TimeControl "5400+30"]

1. d4 {[%emt 0:00:00]} Nf6 {[%emt 0:00:12]} 2. Bf4 {[%emt 0:00:00]} g6 {[%emt 0:00:11]} 3. e3 {[%emt 0:00:00]} Bg7 {[%emt 0:00:11]} 4. Nf3 {[%emt 0:00:02]} O-O {[%emt 0:00:10]} 5. Be2 {[%emt 0:00:18]} d6 {[%emt 0:00:13]} 6. h3 {[%emt 0:00:07]} Nbd7 {[%emt 0:00:13]} 7. O-O {[%emt 0:00:15]} b6 {[%emt 0:00:14]} 8. a4 {[%emt 0:00:10] A48: 1 d4 Nf6 2 Nf3 g6: Torre, London and Colle Systems} (8. c4 Bb7 9. Nc3 a6 10. Bh2 Qe8 11. d5 e5 12. Nd2 Qe7 13. b4 Kh8 14. a4 a5 15. bxa5 Rxa5 16. Nb3 Raa8 17. a5 {1-0 (39) Karjakin,S (2783)-Nepomniachtchi,I (2751) chess.com INT 2017}) 8... a5 {[%emt 0:02:08]} 9. Nc3 {[%emt 0:00:20]} Bb7 {[%emt 0:01:17]} 10. Nb5 {[%emt 0:01:31]} c5 {[%emt 0:03:07]} 11. c3 {[%emt 0:07:13]} Nd5 {[%emt 0:06:12]} 12. Bg3 {[%emt 0:01:59]} N7f6 $146 {[%emt 0:05:34]} ({Predecessor:} 12... Nc7 13. Nd2 Nxb5 14. Bxb5 Nf6 15. Qe2 Qc7 16. Rac1 Rfd8 {1-0 (30) Fichtner,E (1970)-Bondarchuk,V (1996) Solingen 2011}) 13. Nd2 {[%emt 0:04:19]} Nc7 {[%emt 0:02:51]} 14. Qb1 {[%emt 0:21:34]} Nxb5 {[%emt 0:09:33]} 15. Bxb5 {[%emt 0:02:49]} Nh5 {[%emt 0:04:09]} 16. Bh2 {[%emt 0:02:14]} cxd4 {[%emt 0:01:40]} 17. cxd4 {[%emt 0:02:07]} e5 {[%emt 0:09:03]} 18. Nc4 {[%emt 0:08:01]} Qg5 {[%emt 0:06:33]} 19. e4 $15 {[%emt 0:06:09]} exd4 {[%emt 0:20:32]} 20. Nxd6 {[%emt 0:08:58]} Ba6 {[%emt 0:04:45]} 21. Bxa6 {[%emt 0:04:07]} Rxa6 {[%emt 0:00:48]} 22. Qd3 {[%emt 0:04:58]} Raa8 {[%emt 0:02:03]} 23. f4 {[%emt 0:01:14]} Qc5 {[%emt 0:06:31]} 24. e5 {[%emt 0:00:16]} Bh8 {[%emt 0:05:49]} 25. Rfd1 {[%emt 0:01:37]} Ng7 {[%emt 0:03:47]} 26. Ne4 {[%emt 0:03:30]} 1-0

[Event "FRA-ch Youth U16 2018"]
[Site "Agen"]
[Date "2018.04.20"]
[Round "7"]
[White "Francois, Gwladys"]
[Black "Grall, Alba"]
[Result "1-0"]
[ECO "C60"]
[WhiteElo "1765"]
[BlackElo "1855"]
[Annotator "NA"]
[PlyCount "121"]
[EventDate "2018.??.??"]
[EventType "swiss"]
[EventCountry "FRA"]
[SourceTitle "playchess.com"]
[Source "ChessBase"]
[SourceQuality "1"]
[TimeControl "5400+30"]

1. e4 {[%emt 0:00:00]} e5 {[%emt 0:00:06]} 2. Nf3 {[%emt 0:00:15]} Nc6 {[%emt 0:00:06]} 3. Bb5 {[%emt 0:00:46]} g6 {[%emt 0:00:29]} 4. O-O {[%emt 0:02:41]} Bg7 {[%emt 0:02:42]} 5. Bxc6 {[%emt 0:00:34] C60: Ruy Lopez: Unusual Black 3rd moves and 3...g6} (5. c3 a6 6. Ba4 d6 7. d4 exd4 8. cxd4 b5 9. Bb3 Nge7 10. h3 O-O 11. Nc3 Na5 12. Be3 Bb7 13. d5 Nxb3 14. Qxb3 c5 15. dxc6 Nxc6 16. a4 Na5 17. Qb4 Nc6 18. Qb3 Na5 19. Qb4 Nc6 20. Qb3 {½-½ (20) Anton Guijarro,D (2654)-Van Kampen,R (2643) Linares 2017}) 5... bxc6 {[%emt 0:02:04]} 6. d3 {[%emt 0:03:41]} Ne7 {[%emt 0:02:26]} 7. Re1 {[%emt 0:05:18]} O-O {[%emt 0:00:21]} 8. Nbd2 $146 {[%emt 0:04:13]} ({Predecessor:} 8. Bg5 h6 9. Be3 d6 10. h3 f5 11. Bc1 g5 12. Nbd2 Ng6 {1-0 (43) Garcia Padron,J (2220)-Rodriguez Moya,D Corte Ingles 1998}) 8... d6 {[%emt 0:01:10]} 9. c3 {[%emt 0:04:59]} c5 {[%emt 0:18:36]} 10. Qc2 {[%emt 0:07:46]} Rb8 {[%emt 0:05:11]} 11. h3 {[%emt 0:01:25]} h6 {[%emt 0:09:45]} 12. Nb3 {[%emt 0:01:56]} Kh7 {[%emt 0:03:00]} 13. d4 {[%emt 0:04:02]} cxd4 {[%emt 0:09:21]} 14. cxd4 {[%emt 0:02:26]} exd4 {[%emt 0:02:57]} 15. Nfxd4 {[%emt 0:01:18]} Bb7 {[%emt 0:07:51]} ({Black should play} 15... c5 $15 16. Nf3 a5) 16. Bf4 {[%emt 0:05:51]} Qd7 {[%emt 0:04:51]} 17. Rac1 {[%emt 0:08:46]} c5 {[%emt 0:02:34]} 18. Nf3 {[%emt 0:08:43]} f5 {[%emt 0:00:06]} 19. e5 {[%emt 0:02:55]} Bxf3 {[%emt 0:04:51]} 20. gxf3 {[%emt 0:00:32]} Nd5 {[%emt 0:00:28]} 21. e6 {[%emt 0:06:53]} Qe7 {[%emt 0:00:36]} 22. Bh2 {[%emt 0:02:14]} Rb4 {[%emt 0:11:17]} 23. Qd2 {[%emt 0:01:40]} Bd4 {[%emt 0:01:23]} 24. f4 {[%emt 0:02:54]} Rf6 {[%emt 0:02:08]} 25. Qe2 {[%emt 0:03:07]} Nc7 {[%emt 0:00:07]} 26. Nxd4 {[%emt 0:02:38]} Rxd4 {[%emt 0:00:09]} 27. Qf3 $19 {[%emt 0:00:32]} Rb4 {[%emt 0:02:12]} 28. b3 {[%emt 0:00:29]} Rxe6 {[%emt 0:00:13]} 29. Rxe6 {[%emt 0:00:09]} Qxe6 {[%emt 0:00:10]} 30. Qc6 {[%emt 0:00:38]} Qe7 {[%emt 0:00:19]} 31. Kf1 {[%emt 0:00:55]} Rb6 {[%emt 0:01:33]} 32. Qf3 {[%emt 0:01:18]} d5 {[%emt 0:00:22]} 33. Re1 {[%emt 0:00:44]} Re6 {[%emt 0:00:05]} 34. Rc1 {[%emt 0:00:20]} Nb5 {[%emt 0:00:59]} 35. Qxd5 {[%emt 0:01:01]} Rd6 {[%emt 0:03:01]} 36. Qc4 {[%emt 0:04:58]} Na3 {[%emt 0:00:38]} 37. Qc3 {[%emt 0:00:40]} Nb5 {[%emt 0:01:25]} 38. Qc4 {[%emt 0:00:05]} Na3 {[%emt 0:02:33]} 39. Qc3 {[%emt 0:00:04]} Nb5 {[%emt 0:00:03]} 40. Qc4 {[%emt 0:00:04]} a6 {[%emt 0:00:16]} 41. Re1 {[%emt 0:01:28]} Qb7 {[%emt 0:00:13]} 42. Kg1 {[%emt 0:03:31]} Nd4 {[%emt 0:00:19]} 43. Re3 {[%emt 0:00:08]} Rd7 {[%emt 0:01:51]} 44. Qc3 {[%emt 0:00:53]} Qa8 {[%emt 0:00:40]} 45. Bg3 {[%emt 0:00:41]} Nb5 {[%emt 0:00:35]} 46. Qc2 {[%emt 0:00:51]} Qd8 {[%emt 0:00:33]} 47. Qxc5 {[%emt 0:01:27]} Rc7 {[%emt 0:00:35]} 48. Qe5 {[%emt 0:00:52]} Qa8 {[%emt 0:00:20]} 49. Re1 {[%emt 0:00:41]} Qb7 {[%emt 0:00:11]} (49... Rd7 $14) 50. Qb2 {[%emt 0:00:50]} Nc3 {[%emt 0:00:13]} 51. Kh2 {[%emt 0:00:58]} Ne4 {[%emt 0:00:13]} 52. f3 {[%emt 0:01:26]} Qc8 {[%emt 0:00:38]} 53. Re2 {[%emt 0:00:36]} Nxg3 {[%emt 0:00:14]} 54. Kxg3 Rd7 {[%emt 0:00:40]} 55. Qf6 {[%emt 0:00:59]} Qc7 {[%emt 0:01:10]} 56. Qxa6 {[%emt 0:00:36]} Qc1 {[%emt 0:00:19]} 57. Qe6 {[%emt 0:01:21]} Qg1+ {[%emt 0:00:45]} 58. Rg2 {[%emt 0:00:07]} Qd1 {[%emt 0:00:18]} 59. Kh2 {[%emt 0:01:31]} Qd4 {[%emt 0:00:20]} 60. Qxg6+ {[%emt 0:00:09]} Kh8 {[%emt 0:00:17]} 61. Qg8# {[%emt 0:00:01]} 1-0

[Event "FRA-ch Youth U16 2018"]
[Site "Agen"]
[Date "2018.04.20"]
[Round "7"]
[White "Sabiani, Chjara"]
[Black "Pionnier, Camille"]
[Result "1-0"]
[ECO "E11"]
[WhiteElo "1723"]
[BlackElo "1744"]
[Annotator "NA"]
[PlyCount "54"]
[EventDate "2018.??.??"]
[EventType "swiss"]
[EventCountry "FRA"]
[SourceTitle "playchess.com"]
[Source "ChessBase"]
[SourceQuality "1"]
[TimeControl "5400+30"]

1. d4 {[%emt 0:00:00]} Nf6 {[%emt 0:00:06]} 2. c4 {[%emt 0:00:00]} e6 {[%emt 0:00:06]} 3. Nf3 {[%emt 0:00:16]} Bb4+ {[%emt 0:00:21]} 4. Bd2 {[%emt 0:00:09]} a5 {[%emt 0:00:11]} 5. a3 {[%emt 0:02:59]} Bxd2+ {[%emt 0:00:34]} 6. Nbxd2 {[%emt 0:00:37]} a4 {[%emt 0:04:26]} 7. g3 {[%emt 0:01:10]} d6 {[%emt 0:01:05]} 8. Bg2 {[%emt 0:00:33]} Nbd7 {[%emt 0:00:46]} 9. O-O {[%emt 0:03:59]} O-O {[%emt 0:00:30]} 10. e4 {[%emt 0:04:56]} e5 {[%emt 0:00:42]} 11. d5 {[%emt 0:06:27]} Nc5 {[%emt 0:24:27]} 12. Ne1 {[%emt 0:03:23]} Re8 {[%emt 0:05:52]} 13. Qc2 {[%emt 0:04:02]} Ng4 {[%emt 0:11:47]} 14. Nd3 {[%emt 0:02:32]} Nxd3 {[%emt 0:02:30]} 15. Qxd3 {[%emt 0:00:01]} Nh6 {[%emt 0:06:03]} 16. Rac1 {[%emt 0:25:06]} b6 {[%emt 0:05:41]} 17. f4 {[%emt 0:07:17]} exf4 {[%emt 0:06:45]} 18. gxf4 {[%emt 0:01:46]} f5 {[%emt 0:01:15]} 19. Rce1 {[%emt 0:06:02]} fxe4 {[%emt 0:04:35]} 20. Bxe4 {[%emt 0:00:24]} Rf8 {[%emt 0:09:59]} 21. Bxh7+ {[%emt 0:01:11]} Kh8 {[%emt 0:00:01]} 22. Ne4 {[%emt 0:03:38]} Qh4 {[%emt 0:03:02]} 23. Ng5 {[%emt 0:00:32]} Bf5 {[%emt 0:05:46]} 24. Bxf5 {[%emt 0:01:21]} Rxf5 {[%emt 0:00:02]} 25. Qg3 {[%emt 0:00:31]} Qh5 {[%emt 0:01:35]} 26. Re7 {[%emt 0:01:12]} Nf7 {[%emt 0:00:48]} 27. Ne6 {[%emt 0:01:21]} Rg8 1-0

[Event "FRA-ch Youth U16 2018"]
[Site "Agen"]
[Date "2018.04.20"]
[Round "7"]
[White "Konate, Salma"]
[Black "Djidjeli, Sarah"]
[Result "0-1"]
[ECO "B30"]
[WhiteElo "1653"]
[BlackElo "1903"]
[Annotator "NA"]
[PlyCount "72"]
[EventDate "2018.??.??"]
[EventType "swiss"]
[EventCountry "FRA"]
[SourceTitle "playchess.com"]
[Source "ChessBase"]
[SourceQuality "1"]
[TimeControl "5400+30"]

1. e4 {[%emt 0:00:00]} c5 {[%emt 0:00:04]} 2. Nf3 {[%emt 0:00:00]} Nc6 {[%emt 0:00:03]} 3. Nc3 {[%emt 0:00:00]} d6 {[%emt 0:00:08]} 4. h3 {[%emt 0:00:20]} Nf6 {[%emt 0:03:19]} 5. d4 {[%emt 0:01:19]} cxd4 {[%emt 0:00:13]} 6. Nxd4 {[%emt 0:00:06]} e5 {[%emt 0:00:06]} 7. Nf3 {[%emt 0:01:00]} Be7 {[%emt 0:01:47]} 8. Be2 {[%emt 0:03:30]} O-O {[%emt 0:02:02]} 9. a3 {[%emt 0:01:12]} h6 {[%emt 0:03:40]} 10. O-O {[%emt 0:11:39]} Be6 {[%emt 0:00:18]} 11. Bd3 {[%emt 0:01:22]} d5 {[%emt 0:03:15]} 12. Re1 {[%emt 0:02:47]} Bc5 {[%emt 0:05:14]} 13. exd5 {[%emt 0:14:19]} Nxd5 {[%emt 0:00:08]} 14. Nxd5 {[%emt 0:10:41]} Qxd5 {[%emt 0:21:12]} 15. c4 {[%emt 0:02:41]} Qd6 {[%emt 0:01:53]} 16. b4 {[%emt 0:08:10]} Bd4 {[%emt 0:00:09]} 17. Be3 $14 {[%emt 0:07:35]} Rfd8 {[%emt 0:05:36]} 18. Bxd4 {[%emt 0:05:36]} exd4 {[%emt 0:02:00]} 19. b5 {[%emt 0:05:25]} Na5 {[%emt 0:01:50]} 20. Qa4 {[%emt 0:08:57]} b6 {[%emt 0:01:43]} 21. Re4 {[%emt 0:02:57]} Qc5 {[%emt 0:01:03]} 22. Re5 {[%emt 0:00:16]} Qc7 {[%emt 0:00:35]} 23. Rc1 {[%emt 0:04:50]} Rac8 {[%emt 0:05:50]} 24. Re2 {[%emt 0:04:27]} Qf4 {[%emt 0:03:27]} 25. Rce1 {[%emt 0:01:56]} Bxh3 {[%emt 0:06:45]} 26. Re4 {[%emt 0:00:13]} Qf6 {[%emt 0:00:06]} 27. Nxd4 {[%emt 0:00:40]} Qg5 {[%emt 0:01:14]} 28. g3 {[%emt 0:00:59]} Bg4 {[%emt 0:01:52]} 29. R1e3 {[%emt 0:00:38]} g6 {[%emt 0:03:20]} 30. Re5 {[%emt 0:00:41]} Qf6 {[%emt 0:00:36]} 31. Nc6 {[%emt 0:00:39]} Nxc6 {[%emt 0:00:16]} 32. bxc6 {[%emt 0:00:04]} Rxd3 {[%emt 0:00:40]} 33. Re8+ {[%emt 0:00:41]} Rxe8 {[%emt 0:00:04]} 34. Rxe8+ {[%emt 0:00:05]} Kg7 {[%emt 0:00:16]} 35. c7 {[%emt 0:00:45]} Qf3 {[%emt 0:01:05]} 36. Re1 {[%emt 0:00:57]} Bh3 {[%emt 0:00:05]} 0-1

[Event "FRA-ch Youth U16 2018"]
[Site "Agen"]
[Date "2018.04.21"]
[Round "8"]
[White "Gatineau, Yovann"]
[Black "Harutyunyan, Ruben"]
[Result "1-0"]
[ECO "E10"]
[WhiteElo "2365"]
[BlackElo "2305"]
[Annotator "NA RC"]
[PlyCount "74"]
[EventDate "2018.??.??"]
[EventType "swiss"]
[EventCountry "FRA"]
[SourceTitle "playchess.com"]
[Source "ChessBase"]
[SourceQuality "1"]
[TimeControl "5400+30"]

1. d4 {[%emt 0:00:00]} Nf6 {[%emt 0:00:32]} 2. Nf3 {[%emt 0:00:04]} e6 3. c4 {[%emt 0:00:04]} c5 {[%emt 0:00:19]} 4. d5 {[%emt 0:00:05]} b5 {[%emt 0:00:22]} 5. e4 {[%emt 0:00:03]} Nxe4 {[%emt 0:03:17] E10: Blumenfeld Gambit} 6. Bd3 {[%emt 0:00:17]} Nd6 {[%emt 0:09:42]} (6... Nf6 7. O-O Bb7 8. Nc3 Be7 9. Nxb5 exd5 10. cxd5 d6 11. Nh4 O-O 12. Nf5 a6 13. Nc3 {½-½ (44) Vitiugov,N (2724)-Kvon,A (2500) Helsingor 2017}) 7. cxb5 {[%emt 0:00:10]} Bb7 {[%emt 0:11:14]} 8. Nc3 {[%emt 0:00:04]} a6 {[%emt 0:14:13]} 9. b6 {[%emt 0:00:05]} Be7 {[%emt 0:19:46]} 10. O-O {[%emt 0:00:10]} O-O {[%emt 0:04:56]} 11. Bf4 {[%emt 0:00:20]} Qxb6 {[%emt 0:03:14]} 12. Rc1 $146 {[%emt 0:10:18]} ({Find the theoretical novelty and annotate with similar games:} 12. Re1 $14 c4 13. Bxd6 Qxd6 14. Bxc4 {1-0 (81) Mayer,R (2478)-Leupold,V (2326) ICCF email 2010}) 12... Bxd5 {[%emt 0:08:47]} 13. Nxd5 {[%emt 0:18:37]} exd5 {[%emt 0:00:03]} 14. Qc2 {[%emt 0:14:16]} Ne4 {[%emt 0:00:49]} 15. Bxe4 {[%emt 0:08:14]} dxe4 {[%emt 0:00:01]} 16. Qxe4 {[%emt 0:00:05]} Nc6 {[%emt 0:00:26]} 17. Rfd1 {[%emt 0:00:26]} Rae8 {[%emt 0:05:41]} 18. Qc4 {[%emt 0:11:16]} Rd8 {[%emt 0:05:49]} 19. b3 {[%emt 0:07:49]} Nb4 {[%emt 0:01:34]} 20. Qe2 {[%emt 0:02:19]} Rfe8 {[%emt 0:03:05]} 21. a3 {[%emt 0:02:01]} Nc6 {[%emt 0:01:45]} 22. Qc4 {[%emt 0:01:14]} Na5 {[%emt 0:02:09]} 23. Qa4 {[%emt 0:00:03]} Qb5 {[%emt 0:02:12]} 24. Bc7 {[%emt 0:00:34]} Nxb3 {[%emt 0:00:48]} 25. Qxb5 {[%emt 0:00:31]} axb5 {[%emt 0:00:02]} 26. Bxd8 {[%emt 0:00:10]} Rxd8 {[%emt 0:02:04]} ({But not} 26... Nxc1 $6 27. Bxe7 Ne2+ 28. Kf1 $16) 27. Rc3 {[%emt 0:00:07]} c4 {[%emt 0:00:22]} 28. a4 {[%emt 0:01:46]} bxa4 {[%emt 0:00:43]} 29. Rxc4 {[%emt 0:00:04]} a3 $11 {[%emt 0:00:27]} 30. Ra4 {[%emt 0:00:30]} Rc8 {[%emt 0:00:29]} 31. Kf1 {[%emt 0:06:06]} Rc2 {[%emt 0:00:36]} 32. Ra8+ {[%emt 0:03:00]} Bf8 {[%emt 0:00:14]} 33. Ne5 {[%emt 0:00:01]} Nc5 {[%emt 0:00:43]} 34. Nxd7 {[%emt 0:03:08]} Nxd7 {[%emt 0:00:11]} 35. Rxd7 {[%emt 0:00:04]} g6 {[%emt 0:00:35]} 36. Rdd8 {[%emt 0:00:23]} Kg7 {[%emt 0:00:23]} 37. Rxf8 {[%emt 0:00:04]} a2 1-0